bitfinex/quotes_BTCUSD_20250423
["timestamp","ask_amount","ask_price","bid_price","bid_amount"]
[1745375066440,0.00113981,93009.0,92999.0,0.32928059]
[1745375069412,0.00113981,93009.0,92953.0,0.00085]
[1745375069413,0.00113981,93009.0,92990.0,0.32928059]
[1745375069610,0.10944286,93009.0,92990.0,0.32928059]
[1745375069825,0.00230726,93008.0,92990.0,0.32928059]
[1745375070705,0.10944286,93009.0,92991.0,0.01290423]
[1745375070883,0.10944286,93009.0,92998.0,0.32928059]
[1745375072048,0.10944286,93009.0,92990.0,0.01075384]
[1745375072285,0.10944286,93009.0,92999.0,0.32928059]
[1745375073990,0.00113981,93009.0,92999.0,0.32928059]
[1745375074908,0.00113981,93009.0,93003.0,0.01075234]
[1745375075203,0.00113981,93009.0,93003.0,0.01290259]
[1745375075414,0.00113981,93009.0,93006.0,0.01075199]
[1745375075611,0.00113981,93009.0,93007.0,0.37499071]
[1745375075813,0.00113981,93009.0,93007.0,3.21538162]
[1745375075927,0.00113981,93009.0,93008.0,3.66742]
[1745375076162,0.00113981,93009.0,93008.0,3.82082305]
[1745375076763,0.00113981,93009.0,93008.0,0.32814405]
[1745375076976,0.01074748,93045.0,93008.0,0.32814405]
[1745375076977,0.0004252,93047.0,93032.0,0.01074898]
[1745375077180,0.00089213,93047.0,93040.0,0.01074806]
[1745375077392,0.00089213,93047.0,93041.0,0.34169194]
[1745375077594,0.00089213,93047.0,93042.0,0.175681]
[1745375077823,0.00089213,93047.0,93044.0,0.0107476]
[1745375078020,0.00089213,93047.0,93045.0,0.00214939]
[1745375078228,0.00089213,93047.0,93046.0,0.21494744]
[1745375078428,0.00089213,93047.0,93046.0,1.28995461]
[1745375078697,0.00089213,93047.0,93046.0,2.98981249]
[1745375078913,0.412,93081.0,93057.0,0.21492203]
[1745375079132,0.001,93089.0,93057.0,0.21707082]
[1745375079351,0.00056486,93058.0,93056.0,0.2186]
[1745375079574,0.00056486,93058.0,93057.0,0.26442203]
[1745375079748,0.001,93089.0,93057.0,0.26442203]
[1745375079749,0.001,93089.0,93068.0,0.21489663]
[1745375080011,0.001,93089.0,93068.0,0.21270454]
[1745375080644,0.001,93089.0,93060.0,0.01074575]
[1745375080843,0.001,93089.0,93061.0,0.21455705]
[1745375080844,0.00330726,93089.0,93061.0,0.21455705]
[1745375081053,0.10830305,93088.0,93070.0,0.32928059]
[1745375081272,0.00230726,93087.0,93070.0,0.32928059]
[1745375081446,0.11455988,93086.0,93061.0,0.01074563]
[1745375081659,0.11455988,93086.0,93060.0,0.01074575]
[1745375081660,0.00230726,93085.0,93062.0,0.10341]
[1745375081868,0.10830305,93084.0,93063.0,0.00214884]
[1745375082090,0.10830305,93084.0,93044.0,0.21495108]
[1745375082091,0.08568292,93072.0,93050.0,0.32928059]
[1745375082299,0.01074552,93062.0,93039.0,0.0495]
[1745375082516,0.01074656,93053.0,93042.0,0.01190006]
[1745375082725,0.00230726,93052.0,93042.0,0.01190006]
[1745375082949,0.00657614,93052.0,93042.0,0.01190006]
[1745375083152,0.00230726,93060.0,93042.0,0.01190006]
[1745375083359,0.10830305,93059.0,93042.0,0.01190006]
[1745375083565,0.00230726,93058.0,93042.0,0.01190006]
[1745375083797,0.11061031,93058.0,93042.0,0.01190006]
[1745375084008,0.21494692,93047.0,93017.0,0.0495]
[1745375084229,0.11061031,93046.0,93042.0,0.00013996]
[1745375084447,0.11706517,93046.0,93042.0,0.00013996]
[1745375085306,0.11475791,93046.0,93042.0,0.00013996]
[1745375085527,0.01305474,93045.0,93042.0,0.00013996]
[1745375085723,0.10830305,93044.0,93042.0,0.00013996]
[1745375085931,0.00230726,93043.0,93042.0,0.00013996]
[1745375086140,0.11061031,93043.0,93042.0,0.00013996]
[1745375086343,0.11700716,93043.0,93042.0,0.00013996]
[1745375086557,0.1146999,93043.0,93042.0,0.00013996]
[1745375086774,0.00639685,93043.0,93042.0,0.00013996]
[1745375087240,0.00230726,93044.0,93042.0,0.00013996]
[1745375087453,0.00632218,93043.0,93042.0,0.00013996]
[1745375088544,0.35428,93045.0,93042.0,0.00013996]
[1745375088752,0.00660689,93043.0,93042.0,0.00013996]
[1745375088988,0.00230726,93044.0,93042.0,0.00013996]
[1745375089193,0.00660689,93043.0,93042.0,0.00013996]
[1745375089828,0.00230726,93044.0,93042.0,0.00013996]
[1745375090038,0.00660689,93043.0,93042.0,0.00013996]
[1745375090797,0.00230726,93044.0,93042.0,0.00013996]
[1745375091218,0.00660689,93043.0,93042.0,0.00013996]
[1745375092537,0.00230726,93044.0,93042.0,0.00013996]
[1745375092763,0.00660689,93043.0,93042.0,0.00013996]
[1745375093434,0.35428,93045.0,93042.0,0.00013996]
[1745375093672,0.00658827,93043.0,93042.0,0.00013996]
[1745375094069,0.00658957,93043.0,93042.0,0.00013996]
[1745375094320,0.35428,93045.0,93042.0,0.00013996]
[1745375094547,0.00659695,93044.0,93042.0,0.00013996]
[1745375097803,0.00659208,93043.0,93042.0,0.00013996]
[1745375098018,0.35428,93045.0,93042.0,0.00013996]
[1745375099006,0.35428,93045.0,93035.0,0.50407528]
[1745375099229,0.3544198,93045.0,93036.0,0.459806]
[1745375099461,0.3544198,93045.0,93035.0,0.32928059]
[1745375099667,0.3544198,93045.0,93036.0,0.172066]
[1745375099878,0.35208432,93045.0,93036.0,0.172066]
[1745375100288,0.35208432,93045.0,93036.0,0.111238]
[1745375100509,0.35208432,93045.0,93036.0,0.118276]
[1745375100945,0.35208432,93045.0,93035.0,0.32928059]
[1745375101183,0.35208432,93045.0,93036.0,0.184578]
[1745375101445,0.35208432,93045.0,93035.0,0.32928059]
[1745375101696,0.35208432,93045.0,93034.0,0.01074875]
[1745375101934,0.35208432,93045.0,93036.0,0.01074852]
[1745375102162,0.00646543,93044.0,93037.0,0.294462]
[1745375102389,0.35208432,93045.0,93044.0,0.34]
[1745375102390,0.0001398,93045.0,93044.0,0.34]
[1745375102623,0.00230726,93078.0,93058.0,0.01074598]
[1745375102857,0.00675746,93077.0,93069.0,0.32928059]
[1745375103094,0.412,93079.0,93069.0,0.32928059]
[1745375103095,0.41213988,93079.0,93069.0,0.32928059]
[1745375103315,0.0067644,93078.0,93069.0,0.32928059]
[1745375103543,0.0067644,93078.0,93069.0,0.3400253]
[1745375103755,0.0067644,93078.0,93069.0,0.32928059]
[1745375103998,0.0067644,93078.0,93060.0,0.21491303]
[1745375103999,0.00013988,93079.0,93061.0,0.35074563]
[1745375104215,0.00013988,93079.0,93068.0,0.34002542]
[1745375104434,0.00692738,93078.0,93068.0,0.32928059]
[1745375104643,0.00013988,93079.0,93068.0,0.32928059]
[1745375104866,0.00692738,93078.0,93061.0,0.35074563]
[1745375105122,0.01074563,93061.0,93029.0,0.21498428]
[1745375105345,0.01074517,93065.0,93029.0,0.21498428]
[1745375105346,0.34307353,93060.0,93030.0,0.32928059]
[1745375105567,0.11510542,93060.0,93040.0,0.32928059]
[1745375105789,0.00230726,93059.0,93041.0,0.34]
[1745375106016,0.11061031,93059.0,93041.0,0.34]
[1745375106234,0.11061031,93059.0,93042.0,0.01074783]
[1745375106448,0.00678657,93058.0,93042.0,0.01074783]
[1745375106660,0.11061031,93057.0,93028.0,0.23009311]
[1745375106921,0.05614679,93051.0,93028.0,0.01510585]
[1745375107135,0.01074714,93048.0,93028.0,0.01510585]
[1745375107363,0.01074771,93043.0,93012.0,0.0107513]
[1745375107590,0.11061031,93042.0,93012.0,0.0107513]
[1745375107799,0.12784537,93042.0,93023.0,0.01491258]
[1745375108014,0.22571179,93039.0,93011.0,0.001]
[1745375108210,0.26036823,93037.0,93011.0,0.001]
[1745375108446,0.26036823,93037.0,93036.0,0.00146693]
[1745375108447,0.37512185,93037.0,93036.0,0.00146693]
[1745375108920,0.16015362,93037.0,93036.0,0.00146693]
[1745375109144,0.16246088,93037.0,93036.0,0.00146693]
[1745375109567,0.63809875,93037.0,93036.0,0.00146693]
[1745375109784,0.61755362,93037.0,93036.0,0.00146693]
[1745375113815,0.52675362,93037.0,93036.0,0.00146693]
[1745375116921,0.54129447,93037.0,93036.0,0.00146693]
[1745375120055,0.52675362,93037.0,93036.0,0.00146693]
[1745375124740,0.7562627,93037.0,93036.0,0.00146693]
[1745375124964,0.8045627,93037.0,93036.0,0.00146693]
[1745375125647,0.91286575,93037.0,93036.0,0.00146693]
[1745375127171,0.82456591,93037.0,93036.0,0.00146693]
[1745375128739,0.76172506,93037.0,93036.0,0.00146693]
[1745375128959,0.74172185,93037.0,93036.0,0.00146693]
[1745375129408,0.7562627,93037.0,93036.0,0.00146693]
[1745375130849,0.7562627,93037.0,93036.0,0.00046693]
[1745375131553,0.81259251,93037.0,93036.0,0.00046693]
[1745375132629,0.82259746,93037.0,93036.0,0.00046693]
[1745375132887,0.76626765,93037.0,93036.0,0.00046693]
[1745375135955,0.7562627,93037.0,93036.0,0.00046693]
[1745375136181,0.74981213,93037.0,93036.0,0.00046693]
[1745375137551,0.75986198,93037.0,93036.0,0.00046693]
[1745375139181,0.80685703,93037.0,93036.0,0.00046693]
[1745375139612,0.80685703,93037.0,93011.0,0.001]
[1745375139613,0.22956686,93012.0,93011.0,0.001]
[1745375139831,0.79750298,93012.0,93011.0,0.0011398]
[1745375140047,1.19475283,93012.0,93011.0,1e-08]
[1745375140256,1.22584909,93012.0,93011.0,1e-08]
[1745375140458,1.22584909,93012.0,92991.0,0.001]
[1745375140459,0.2150422,93005.0,92991.0,0.001]
[1745375140671,0.34019336,93005.0,92991.0,0.001]
[1745375140891,0.81893714,93005.0,92991.0,0.001]
[1745375141113,0.56959692,92999.0,92991.0,0.001]
[1745375141317,0.67789997,92999.0,92998.0,0.00098941]
[1745375142189,0.68794982,92999.0,92998.0,0.00098941]
[1745375143142,0.34794982,92999.0,92998.0,0.00098941]
[1745375143936,0.22961311,92992.0,92991.0,0.001]
[1745375144168,0.74944923,92992.0,92991.0,0.001]
[1745375144886,0.74944923,92992.0,92991.0,1e-08]
[1745375145627,0.21516018,92954.0,92951.0,0.01538031]
[1745375145844,0.73730355,92954.0,92951.0,0.01538031]
[1745375146069,0.73730355,92954.0,92951.0,0.001]
[1745375146070,0.74953714,92954.0,92951.0,0.001]
[1745375146941,0.74953714,92954.0,92953.0,0.00099012]
[1745375147156,0.21517176,92949.0,92948.0,0.000849]
[1745375147363,0.68032292,92949.0,92948.0,1e-08]
[1745375147572,0.67801566,92949.0,92948.0,1e-08]
[1745375148624,0.32347481,92949.0,92948.0,1e-08]
[1745375148826,0.73500787,92949.0,92948.0,1e-08]
[1745375149032,0.73500787,92949.0,92948.0,0.00100001]
[1745375149033,0.51983611,92949.0,92948.0,0.00100001]
[1745375149494,0.41153306,92949.0,92948.0,0.00100001]
[1745375150131,0.00013976,92954.0,92948.0,0.00100001]
[1745375151154,0.00013976,92954.0,92950.0,0.34]
[1745375152384,0.00013976,92954.0,92948.0,0.00100001]
[1745375153314,0.00013976,92954.0,92942.0,0.01160959]
[1745375153527,0.00013976,92954.0,92944.0,0.32928059]
[1745375155287,0.00013976,92954.0,92945.0,0.295819]
[1745375155439,0.00013976,92954.0,92946.0,0.235024]
[1745375155645,0.00013976,92954.0,92945.0,0.26641]
[1745375155850,0.00013976,92954.0,92946.0,0.00215155]
[1745375156057,0.00013976,92954.0,92947.0,0.236739]
[1745375156312,0.00013976,92954.0,92944.0,0.32928059]
[1745375156484,0.00013976,92954.0,92945.0,0.00215155]
[1745375156699,0.00013976,92954.0,92944.0,0.32928059]
[1745375157078,0.00013976,92954.0,92945.0,0.26953755]
[1745375157297,0.00013976,92954.0,92944.0,0.32928059]
[1745375157657,0.00013976,92954.0,92945.0,0.00215155]
[1745375158062,0.00013976,92954.0,92944.0,0.32928059]
[1745375158852,0.10830305,92953.0,92942.0,0.0008502]
[1745375159054,0.00230726,92952.0,92942.0,0.0008502]
[1745375159258,0.10830305,92951.0,92942.0,0.0008502]
[1745375160468,0.00230726,92950.0,92942.0,0.0008502]
[1745375160676,0.10830305,92949.0,92942.0,0.0008502]
[1745375160892,0.00230726,92948.0,92942.0,0.0008502]
[1745375161088,0.22594132,92945.0,92942.0,0.0008502]
[1745375161298,0.21518565,92943.0,92942.0,0.0008502]
[1745375161526,0.3234887,92943.0,92942.0,0.0008502]
[1745375162391,0.33346759,92943.0,92942.0,0.0008502]
[1745375162605,0.76654299,92943.0,92942.0,0.0008502]
[1745375162822,1.0995415,92943.0,92942.0,0.0008502]
[1745375164533,0.529815,92943.0,92942.0,0.0008502]
[1745375165632,0.51983611,92943.0,92942.0,0.0008502]
[1745375171781,0.51983611,92943.0,92930.0,0.09101253]
[1745375171988,0.00230726,92942.0,92930.0,0.09101253]
[1745375174326,0.00230726,92942.0,92923.0,0.0008482]
[1745375174529,0.10830305,92941.0,92930.0,0.32928059]
[1745375174700,0.00230726,92940.0,92923.0,0.0008482]
[1745375174921,0.22597582,92931.0,92923.0,0.0008482]
[1745375175138,0.11061031,92930.0,92923.0,0.0008482]
[1745375175358,0.01075974,92939.0,92923.0,0.0008482]
[1745375175563,0.00230726,92942.0,92929.0,0.32928059]
[1745375176747,0.10830305,92941.0,92923.0,0.0008482]
[1745375176958,0.00230726,92940.0,92923.0,0.0008482]
[1745375177129,0.10830305,92939.0,92930.0,0.32928059]
[1745375177322,0.10561031,92939.0,92930.0,0.32928059]
[1745375178007,0.10561031,92939.0,92923.0,0.0008482]
[1745375178413,0.01075997,92937.0,92923.0,0.0008482]
[1745375178651,0.10830305,92936.0,92923.0,0.0008482]
[1745375178859,0.11906314,92936.0,92923.0,0.0008482]
[1745375179089,0.21520417,92935.0,92923.0,0.0008482]
[1745375179299,0.01076067,92931.0,92923.0,0.0008482]
[1745375179503,0.10830305,92930.0,92923.0,0.0008482]
[1745375182068,0.32351962,92930.0,92923.0,0.0008482]
[1745375182272,0.10830305,92930.0,92923.0,0.0008482]
[1745375182708,0.10830305,92930.0,92909.0,0.01427053]
[1745375182917,0.10830305,92930.0,92910.0,0.32928059]
[1745375183133,0.11906383,92930.0,92910.0,0.32928059]
[1745375183796,0.01076206,92919.0,92909.0,0.01390065]
[1745375184003,0.41153306,92929.0,92910.0,0.34]
[1745375184213,0.10830305,92928.0,92910.0,0.34]
[1745375184434,0.01076125,92926.0,92910.0,0.34]
[1745375184632,0.10830305,92925.0,92910.0,0.34]
[1745375184897,0.01076148,92924.0,92910.0,0.34]
[1745375185089,0.10830305,92923.0,92910.0,0.34046739]
[1745375187399,0.10830305,92923.0,92910.0,0.00046739]
[1745375187610,0.10330305,92923.0,92910.0,0.00046739]
[1745375188023,0.10330305,92923.0,92910.0,0.32974798]
[1745375188961,0.10430305,92923.0,92910.0,0.32974798]
[1745375189384,0.10430305,92923.0,92910.0,0.00046739]
[1745375189569,0.10430305,92923.0,92910.0,0.32974798]
[1745375189779,0.001,92923.0,92910.0,0.66974798]
[1745375189982,0.001,92923.0,92921.0,0.3887]
[1745375190208,0.001,92923.0,92922.0,0.0478]
[1745375190871,0.42229211,92945.0,92922.0,0.0478]
[1745375191079,0.10830305,92944.0,92922.0,0.0478]
[1745375193508,0.40917138,92944.0,92922.0,0.0478]
[1745375193737,0.41993054,92944.0,92922.0,0.0478]
[1745375193890,0.21518796,92942.0,92922.0,0.0478]
[1745375194154,0.01076044,92933.0,92911.0,0.34]
[1745375194345,0.01076044,92933.0,92913.0,0.34]
[1745375194571,0.01076159,92923.0,92915.0,0.34]
[1745375194786,0.01076159,92923.0,92910.0,0.00046739]
[1745375194787,0.21524586,92917.0,92910.0,0.00046739]
[1745375194998,0.01076217,92918.0,92910.0,0.00046739]
[1745375195223,0.01076206,92919.0,92910.0,0.00046739]
[1745375195433,0.01076217,92918.0,92910.0,0.00046739]
[1745375195649,0.32353791,92922.0,92910.0,0.00046739]
[1745375195650,0.10830305,92922.0,92910.0,0.00046739]
[1745375195863,0.02081349,92921.0,92910.0,0.00046739]
[1745375196059,0.11906499,92920.0,92910.0,0.00046739]
[1745375196468,0.10830305,92920.0,92910.0,0.00046739]
[1745375197148,0.01076217,92918.0,92910.0,0.00046739]
[1745375197352,0.10830305,92920.0,92910.0,0.00046739]
[1745375197831,0.01076275,92913.0,92910.0,0.00046739]
[1745375198291,0.32356049,92912.0,92910.0,0.00046739]
[1745375198517,0.41153306,92911.0,92910.0,0.00046739]
[1745375198743,0.51983611,92911.0,92910.0,0.00046739]
[1745375198979,0.52988562,92911.0,92910.0,0.00046739]
[1745375199440,0.53742303,92911.0,92910.0,0.00046739]
[1745375200335,0.52988562,92911.0,92910.0,0.00046739]
[1745375200979,0.75612562,92911.0,92910.0,0.00046739]
[1745375201650,0.86442867,92911.0,92910.0,0.00046739]
[1745375202166,0.75712562,92911.0,92910.0,0.00046739]
[1745375202416,0.22981451,92905.0,92904.0,0.00031739]
[1745375202636,0.33811756,92905.0,92904.0,0.00031739]
[1745375203048,0.34565497,92905.0,92904.0,0.00031739]
[1745375203247,0.35570448,92905.0,92904.0,0.00031739]
[1745375203844,0.34816707,92905.0,92904.0,0.00031739]
[1745375205319,0.33811756,92905.0,92904.0,0.00031739]
[1745375206969,0.21528757,92899.0,92891.0,0.001]
[1745375207188,0.33813147,92899.0,92898.0,0.00098926]
[1745375207418,0.21534552,92874.0,92873.0,0.0008502]
[1745375207651,0.74972248,92874.0,92873.0,0.0008502]
[1745375208554,0.2299026,92867.0,92866.0,1e-08]
[1745375208757,0.60958565,92867.0,92866.0,1e-08]
[1745375210310,0.21543366,92836.0,92829.0,0.0008502]
[1745375210521,0.21543366,92836.0,92835.0,0.00131776]
[1745375215052,0.21543042,92838.0,92835.0,0.00131776]
[1745375215253,0.41153306,92843.0,92836.0,0.0471]
[1745375215476,0.41153306,92843.0,92837.0,0.34]
[1745375215685,0.41153306,92843.0,92839.0,0.34]
[1745375215916,0.41153306,92843.0,92840.0,0.289762]
[1745375216330,0.41153306,92843.0,92840.0,0.157559]
[1745375216557,0.41153306,92843.0,92842.0,0.34]
[1745375217602,0.41153306,92843.0,92840.0,0.0474]
[1745375217812,0.41153306,92843.0,92842.0,0.34]
[1745375218460,0.21537555,92862.0,92842.0,0.34]
[1745375218461,0.41153306,92866.0,92842.0,1.57108]
[1745375218695,0.41153306,92866.0,92840.0,0.0474]
[1745375218696,0.08568292,92860.0,92851.0,0.34]
[1745375219321,0.01076901,92859.0,92851.0,0.34]
[1745375219599,0.21539499,92853.0,92851.0,0.34]
[1745375219934,0.01076971,92853.0,92836.0,0.0471]
[1745375220169,0.01076971,92853.0,92831.0,0.341]
[1745375220402,0.01077133,92839.0,92831.0,0.001]
[1745375220628,0.21541461,92845.0,92831.0,0.001]
[1745375220896,0.01077087,92843.0,92831.0,0.001]
[1745375221144,0.10830305,92843.0,92831.0,0.341]
[1745375221324,0.01077029,92848.0,92832.0,0.00215431]
[1745375221585,0.01077017,92849.0,92839.0,0.34]
[1745375221802,0.09645297,92850.0,92839.0,0.34]
[1745375222387,0.41153306,92852.0,92841.0,0.34]
[1745375222603,0.01076866,92862.0,92841.0,0.34]
[1745375222604,0.41946876,92866.0,92842.0,0.0491]
[1745375222807,0.43023696,92866.0,92851.0,0.34]
[1745375223009,0.41946876,92866.0,92851.0,0.34]
[1745375223231,0.41153306,92866.0,92852.0,0.00215386]
[1745375223368,0.41153306,92866.0,92853.0,0.34]
[1745375223581,0.41153306,92866.0,92855.0,0.39816947]
[1745375223811,0.41153306,92866.0,92862.0,0.01076866]
[1745375224011,0.3548,92875.0,92867.0,0.01076808]
[1745375224208,0.41153306,92889.0,92869.0,0.3891]
[1745375224410,0.42229859,92889.0,92871.0,0.34]
[1745375224639,0.42229859,92889.0,92872.0,0.216505]
[1745375225020,0.01076565,92888.0,92871.0,0.34]
[1745375225222,0.01090537,92888.0,92872.0,0.133537]
[1745375225595,0.01090537,92888.0,92872.0,0.133517]
[1745375225802,0.010766,92885.0,92874.0,0.34]
[1745375226009,0.08568292,92880.0,92874.0,0.34]
[1745375227103,0.08568292,92880.0,92871.0,0.34]
[1745375227313,0.08568292,92880.0,92871.0,1.579597]
[1745375227520,0.08568292,92880.0,92872.0,1.239597]
[1745375228710,0.00013972,92888.0,92872.0,1.239597]
[1745375229369,0.01090537,92888.0,92872.0,1.239597]
[1745375229779,0.00013972,92888.0,92872.0,1.239597]
[1745375231274,0.00013972,92888.0,92873.0,0.34]
[1745375231474,0.00013972,92888.0,92867.0,0.01076808]
[1745375231475,0.00013972,92888.0,92879.0,0.34]
[1745375232092,0.00013972,92888.0,92881.0,0.35076646]
[1745375232310,0.00013972,92888.0,92885.0,0.010766]
[1745375232515,0.00013972,92888.0,92884.0,0.00215299]
[1745375232721,0.00013972,92888.0,92885.0,0.010766]
[1745375232924,0.00013972,92888.0,92884.0,0.00215299]
[1745375233132,0.00013972,92888.0,92887.0,0.34]
[1745375234380,0.00013972,92888.0,92884.0,0.01371448]
[1745375234815,0.00013972,92888.0,92879.0,0.34]
[1745375235370,0.00013972,92888.0,92879.0,0.3534274]
[1745375235952,0.010766,92885.0,92879.0,0.0134274]
[1745375236200,0.01076681,92878.0,92871.0,0.34]
[1745375236411,0.01076646,92881.0,92860.0,0.21998484]
[1745375236613,0.11906963,92880.0,92861.0,0.101543]
[1745375236820,0.01076681,92878.0,92861.0,0.101543]
[1745375237035,0.11906963,92880.0,92862.0,0.34]
[1745375237173,0.01076669,92879.0,92864.0,0.34]
[1745375237590,0.11906963,92880.0,92864.0,0.34]
[1745375238018,0.10830305,92880.0,92870.0,0.21998484]
[1745375243580,0.10830305,92880.0,92870.0,0.21927622]
[1745375243808,0.01076669,92879.0,92870.0,0.21927622]
[1745375244017,0.01076681,92878.0,92870.0,0.21927622]
[1745375244668,0.10830305,92880.0,92870.0,0.21927622]
[1745375245139,0.10830305,92880.0,92861.0,0.01361929]
[1745375245369,0.01076716,92875.0,92861.0,0.01361929]
[1745375245564,0.01076704,92876.0,92860.0,0.21998484]
[1745375245782,0.01076704,92876.0,92867.0,0.34]
[1745375246003,0.01076739,92873.0,92867.0,0.34]
[1745375246268,0.01076773,92870.0,92867.0,0.34]
[1745375246486,0.01076762,92871.0,92867.0,0.34]
[1745375247561,0.0107675,92872.0,92867.0,0.34]
[1745375249818,0.21535841,92869.0,92860.0,0.0132528]
[1745375250071,0.10830305,92868.0,92851.0,0.34]
[1745375250275,0.11907102,92868.0,92853.0,0.34]
[1745375250470,0.11907102,92868.0,92855.0,0.34]
[1745375250720,0.10830305,92868.0,92855.0,0.34]
[1745375251282,0.21531269,92889.0,92859.0,0.34]
[1745375251481,0.01076646,92881.0,92866.0,0.34]
[1745375251712,0.01076658,92880.0,92866.0,0.34]
[1745375251928,0.22610133,92879.0,92866.0,0.34]
[1745375252139,0.42229987,92878.0,92866.0,0.34]
[1745375252332,0.01076704,92876.0,92866.0,0.34]
[1745375252538,0.41153306,92878.0,92866.0,0.34]
[1745375254244,0.10830305,92877.0,92866.0,0.34]
[1745375255341,0.10830305,92877.0,92855.0,0.3534761]
[1745375255342,0.19398597,92877.0,92855.0,0.3534761]
[1745375255550,0.19398597,92877.0,92860.0,0.21998484]
[1745375256369,0.19398597,92877.0,92868.0,0.34]
[1745375257032,0.08568292,92877.0,92868.0,0.34]
[1745375257489,0.08568292,92877.0,92869.0,0.931796]
[1745375258333,0.02193922,92877.0,92869.0,0.931796]
[1745375259003,0.02193922,92877.0,92869.0,0.966943]
[1745375259641,0.02193922,92877.0,92869.0,0.188559]
[1745375259855,0.02193922,92877.0,92871.0,0.34]
[1745375260849,0.02193922,92877.0,92868.0,0.34]
[1745375261021,0.02193922,92877.0,92869.0,0.35348]
[1745375262865,0.00013972,92888.0,92869.0,0.35348]
[1745375263504,0.08568292,92876.0,92861.0,0.34]
[1745375263711,0.08568292,92876.0,92871.0,0.34]
[1745375263890,0.19398597,92876.0,92871.0,0.34]
[1745375264094,0.20475301,92876.0,92861.0,0.34]
[1745375264505,0.19398597,92876.0,92867.0,0.34]
[1745375265554,0.19398597,92876.0,92860.0,0.21998484]
[1745375266791,0.19398597,92876.0,92855.0,0.02424557]
[1745375266792,0.0107653,92891.0,92867.0,0.34]
[1745375266997,0.10830305,92884.0,92867.0,0.34]
[1745375268160,0.11906916,92884.0,92867.0,0.34]
[1745375268579,0.10830305,92884.0,92867.0,0.34]
[1745375268799,0.10830305,92884.0,92875.0,0.34]
[1745375270616,0.11906916,92884.0,92857.0,0.34]
[1745375270845,0.10830305,92884.0,92871.0,0.34]
[1745375275941,0.10830305,92884.0,92865.0,0.34]
[1745375276061,0.10830305,92884.0,92871.0,0.34]
[1745375276265,0.00013972,92888.0,92873.0,0.01076739]
[1745375276464,0.00013972,92888.0,92878.0,0.34]
[1745375278097,0.08568292,92887.0,92871.0,0.34]
[1745375278556,0.10830305,92886.0,92871.0,0.34]
[1745375278774,0.08568292,92877.0,92855.0,0.0134761]
[1745375278994,0.19398597,92877.0,92862.0,0.34]
[1745375280641,0.10830305,92876.0,92862.0,0.34]
[1745375280835,0.0471,92875.0,92862.0,0.34]
[1745375280978,0.10830305,92874.0,92862.0,0.34]
[1745375281713,0.10830305,92874.0,92862.0,0.35076866]
[1745375281912,0.08568292,92877.0,92863.0,0.01076855]
[1745375282144,0.19398597,92877.0,92868.0,0.34]
[1745375283707,0.41153306,92879.0,92868.0,0.34]
[1745375284163,0.41153306,92879.0,92865.0,0.01076831]
[1745375284379,0.41153306,92879.0,92870.0,0.34]
[1745375286623,0.41153306,92879.0,92870.0,0.17973131]
[1745375287061,0.17512,92884.0,92866.0,0.0107682]
[1745375287264,0.17512,92884.0,92869.0,0.21998484]
[1745375288081,0.10830305,92883.0,92869.0,0.21998484]
[1745375289200,0.10830305,92883.0,92870.0,0.34]
[1745375290177,0.17512,92884.0,92870.0,0.34]
[1745375291730,0.08568292,92887.0,92870.0,0.34]
[1745375291873,0.00013972,92888.0,92878.0,0.34]
[1745375292082,0.00013972,92888.0,92879.0,0.21533392]
[1745375292300,0.00013972,92888.0,92887.0,0.34]
[1745375292521,0.35488,92907.0,92896.0,0.01076472]
[1745375292725,0.35488,92907.0,92898.0,0.34]
[1745375295113,0.35497053,92907.0,92898.0,0.34]
[1745375296885,0.35497053,92907.0,92901.0,0.34]
[1745375297113,0.35497053,92907.0,92905.0,0.34]
[1745375297330,9.053e-05,92907.0,92905.0,0.34]
[1745375297532,1e-08,92909.0,92907.0,0.34]
[1745375297731,0.000851,92923.0,92920.0,0.01076194]
[1745375299889,0.000851,92923.0,92921.0,0.21523659]
[1745375300213,0.000851,92923.0,92922.0,0.00215205]
[1745375301404,0.000851,92923.0,92921.0,0.01309155]
[1745375301606,0.08568292,92922.0,92921.0,0.01309155]
[1745375301808,0.08568292,92922.0,92910.0,0.21998484]
[1745375303315,0.08568292,92922.0,92905.0,0.02443927]
[1745375303580,0.08568292,92922.0,92905.0,0.01367559]
[1745375303773,0.08568292,92922.0,92910.0,0.21998484]
[1745375304468,0.000851,92923.0,92910.0,0.21998484]
[1745375306444,0.000851,92923.0,92907.0,0.00215241]
[1745375306687,0.000851,92923.0,92910.0,0.21998484]
[1745375306912,0.000851,92923.0,92906.0,0.01076356]
[1745375307127,0.000851,92923.0,92910.0,0.21998484]
[1745375307586,0.08568292,92922.0,92905.0,0.01367559]
[1745375307796,0.08568292,92922.0,92910.0,0.21998484]
[1745375311146,0.08568292,92922.0,92910.0,0.2092074]
[1745375313354,0.01076275,92913.0,92905.0,0.01267559]
[1745375313560,0.10830305,92912.0,92905.0,0.01267559]
[1745375313767,0.10830305,92912.0,92891.0,0.34]
[1745375313768,0.11906592,92912.0,92891.0,0.34]
[1745375313914,0.10830305,92912.0,92891.0,0.34009053]
[1745375314325,0.10830305,92912.0,92900.0,0.21998484]
[1745375315796,0.10830305,92912.0,92892.0,0.01076518]
[1745375316013,0.10830305,92912.0,92900.0,0.21998484]
[1745375316635,0.10830305,92912.0,92894.0,0.01076495]
[1745375316861,0.10830305,92912.0,92900.0,0.21998484]
[1745375317736,0.10830305,92912.0,92894.0,0.01076495]
[1745375317949,0.10830305,92912.0,92900.0,0.21998484]
[1745375318752,0.10830305,92912.0,92893.0,0.01076507]
[1745375318956,0.10830305,92912.0,92900.0,0.21998484]
[1745375319152,0.10830305,92912.0,92891.0,0.34009053]
[1745375319677,0.0476,92911.0,92891.0,0.35085583]
[1745375320025,0.10830305,92910.0,92891.0,0.34009053]
[1745375320634,0.10830305,92910.0,92891.0,0.35085583]
[1745375321584,0.10830305,92910.0,92892.0,0.01076518]
[1745375321809,0.10830305,92910.0,92891.0,0.35085583]
[1745375322239,0.10830305,92910.0,92892.0,0.01076518]
[1745375322827,0.10830305,92910.0,92891.0,0.35085583]
[1745375323031,0.10830305,92910.0,92892.0,0.01076518]
[1745375323246,0.10830305,92910.0,92891.0,0.35085583]
[1745375324033,0.10830305,92910.0,92892.0,0.01291793]
[1745375324264,0.10830305,92910.0,92892.0,0.01076518]
[1745375324471,0.0476,92911.0,92900.0,0.21998484]
[1745375324644,0.41153306,92914.0,92901.0,0.00215261]
[1745375325100,0.41153306,92914.0,92913.0,0.34]
[1745375325319,0.159,92921.0,92918.0,0.01076217]
[1745375325517,0.000851,92923.0,92918.0,0.01076217]